Cogmind - Beta 10.2 @@@ ROGUE MODE // 2021.11.07 @ 22:00:57 Player: Geraldon Result: Destroyed 0B10! Performance ------------- Evolutions (9) 4500 Regions Visited (31) 6200 Robots Destroyed (178) 890 Value Destroyed (6020) 6020 Prototype IDs (79) 1580 Alien Tech Used (2) 400 Bonus (14745) 14745 TOTAL SCORE: 34335 Bonus ------- High Alert Combat Kills 727 Follower Combat Kills 1621 Network Hubs Disabled 200 Met Data Miner 300 Met Imprinter 300 Met Warlord at Base 500 MAIN.C Attacked Warlord 500 Used Core Reset Matrix 3000 Met Sigix 2000 Escaped with Sigix 5000 Win 3000 Friendly Fire -2403 Cogmind --------- Core Integrity 1600/1600 Matter 260/300 Energy 575/590 System Corruption 0% Temperature Cool (15) Movement Flying (28) Location Tau Ceti IV Orbit Parts ------- > --- POWER (3) -------- Backup Power VII Light Quantum Reactor > --- PROPULSION (6) --- Xenon Bombardment Thruster Xenon Bombardment Thruster Xenon Bombardment Thruster Xenon Bombardment Thruster Field Propulsion Array > --- UTILITY (14) ----- Advanced Heat Sink Advanced Heat Sink Medium Storage Unit High-capacity Battery Enhanced Optical Array Microactuators Improved Stasis Canceller Hacking Suite Advanced Hacking Suite Advanced Hacking Suite Advanced Hacking Suite Advanced Hacking Suite Makeshift System Shield Improved System Shield > --- WEAPON (2) ------- Centrium Greatsword > --- INVENTORY (8) ---- Improved Linear Gravjet Micro-nuke Launcher Sigix Containment Pod Peak State ------------ > --- POWER ------------ Backup Power VII Light Quantum Reactor > --- PROPULSION ------- Xenon Bombardment Thruster Xenon Bombardment Thruster Xenon Bombardment Thruster Xenon Bombardment Thruster Field Propulsion Array > --- UTILITY ---------- Advanced Heat Sink Advanced Heat Sink Medium Storage Unit High-capacity Battery Enhanced Optical Array Microactuators Improved Stasis Canceller Hacking Suite Advanced Hacking Suite Advanced Hacking Suite Advanced Hacking Suite Advanced Hacking Suite Makeshift System Shield Improved System Shield > --- WEAPON ----------- Centrium Greatsword > --- INVENTORY -------- Improved Linear Gravjet Micro-nuke Launcher Sigix Containment Pod [Rating: 130] Favorites ----------- Power Cooled Ion Engine Engine Cooled Ion Engine Power Core Micro Fission Core Reactor Light Antimatter Reactor Propulsion Light Treads Treads Light Treads Flight Unit Electron Diverter Utility Advanced Hacking Suite Device Improved Heat Sink Storage Large Storage Unit Processor Enhanced Optical Array Hackware Advanced Hacking Suite Protection Improved Utility Shielding Weapon EM Pulse Cannon Energy Gun Small Laser Energy Cannon EM Pulse Cannon Ballistic Gun Assault Rifle Ballistic Cannon Assault Cannon Launcher Advanced EMP Blaster Special Weapon Improved Remote Datajack Impact Weapon Heavy Mace Slashing Weapon Vibroblade Piercing Weapon Plasma Lance Special Melee Weapon Improved Datajack Build | -11 -10 -9 -9 -8 -8 -7 -7 -7 -7 -6 -6 -6 -6 -6 -5 -5 -5 -5 -5 -5 -5 -4 -4 -4 -4 -4 -4 -3 -3 -2 -1 ------- Run | Scr Mat Mat Min Mat Sto Fac Low Low Dat Pro Fac Low Low Zio Pro Fac Was Fac Upp Upp War Pro Fac Ext Cet Arc Hub Res Qua Res Acc Slots Evolved 18 | . . 2 . 2 . 2 . . . . 2 . . . . 2 . . . . . . 2 . . . . 2 . 2 2 Power 2 | . . . . . . . . . . . . . . . . 1 . . . . . . . . . . . . . . 1 Propulsion 4 | . . 1 . . . . . . . . 1 . . . . . . . . . . . . . . . . 1 . 1 . Utility 12 | . . 1 . 2 . 2 . . . . 1 . . . . 1 . . . . . . 2 . . . . 1 . 1 1 Weapon . | . . . . . . . . . . . . . . . . . . . . . . . . . . . . . . . . Parts Attached 215 | 7 1 37 . 16 15 18 2 1 1 . 11 1 . 2 2 3 . 16 1 1 10 . 13 6 1 . 7 6 12 13 12 Power 28 | 2 . 5 . 1 1 3 . . . . 2 . . . . . . 4 . . . . 2 3 . . . 2 2 . 1 Engine 13 | 2 . 5 . 1 1 3 . . . . 1 . . . . . . . . . . . . . . . . . . . . Core 8 | . . . . . . . . . . . 1 . . . . . . 4 . . . . 2 1 . . . . . . . Reactor 7 | . . . . . . . . . . . . . . . . . . . . . . . . 2 . . . 2 2 . 1 Propulsion 59 | 2 . 7 . 7 7 3 . . . . 5 . . . . . . 5 . . 2 . 3 2 . . 1 1 4 9 1 Treads 22 | 2 . 7 . 7 6 . . . . . . . . . . . . . . . . . . . . . . . . . . Leg . | . . . . . . . . . . . . . . . . . . . . . . . . . . . . . . . . Wheel . | . . . . . . . . . . . . . . . . . . . . . . . . . . . . . . . . Hover . | . . . . . . . . . . . . . . . . . . . . . . . . . . . . . . . . Flight 37 | . . . . . 1 3 . . . . 5 . . . . . . 5 . . 2 . 3 2 . . 1 1 4 9 1 Utility 79 | 1 . 8 . 5 2 9 2 . . . 3 . . 1 2 3 . 5 . 1 6 . 6 1 1 . 4 2 4 3 10 Device 15 | . . 3 . 1 . . 1 . . . 1 . . . 1 . . . . . 3 . . . . . . 1 . 1 3 Storage 6 | 1 . 2 . . . . . . . . . . . . . . . . . . . . . . . . . . . . 3 Processor 2 | . . . . . . . . . . . . . . . . . . 1 . . . . . . . . . . . 1 . Hackware 29 | . . . . . . 5 . . . . 1 . . 1 1 3 . 2 . 1 1 . 3 1 . . 1 1 3 1 4 Protection 27 | . . 3 . 4 2 4 1 . . . 1 . . . . . . 2 . . 2 . 3 . 1 . 3 . 1 . . Artifact . | . . . . . . . . . . . . . . . . . . . . . . . . . . . . . . . . Weapon 49 | 2 1 17 . 3 5 3 . 1 1 . 1 1 . 1 . . . 2 1 . 2 . 2 . . . 2 1 2 1 . Energy Gun 9 | . 1 4 . 1 . 1 . . . . . . . . . . . . . . 2 . . . . . . . . . . Energy Cannon 8 | . . 5 . 1 . . . . . . . . . . . . . . . . . . . . . . 2 . . . . Ballistic Gun 5 | 2 . 3 . . . . . . . . . . . . . . . . . . . . . . . . . . . . . Ballistic Cannon 1 | . . . . . 1 . . . . . . . . . . . . . . . . . . . . . . . . . . Launcher 12 | . . 5 . 1 4 . . 1 . . . . . . . . . . . . . . 1 . . . . . . . . Special Weapon 2 | . . . . . . . . . . . . . . . . . . . 1 . . . . . . . . 1 . . . Impact Weapon 3 | . . . . . . . . . . . . . . 1 . . . 2 . . . . . . . . . . . . . Slashing Weapon 6 | . . . . . . 1 . . 1 . 1 . . . . . . . . . . . 1 . . . . . 1 1 . Piercing Weapon 1 | . . . . . . . . . . . . . . . . . . . . . . . . . . . . . 1 . . Special Melee Weapon 2 | . . . . . . 1 . . . . . 1 . . . . . . . . . . . . . . . . . . . Unidentified Prototypes 23 | . . 4 . 1 2 1 . . . . 1 . . . 1 . . 1 . . 6 . . . . . . . 3 3 . Parts Lost 83 | . 1 12 . 4 3 . . 2 . 1 2 . . . 4 4 . 6 . 1 1 . . 8 . . 3 2 14 15 . Power 18 | . . 2 . . 1 . . . . 1 . . . . 1 . . 2 . . . . . 3 . . 2 . 4 2 . Propulsion 20 | . . 5 . . . . . . . . 1 . . . . 1 . 2 . . . . . 2 . . . 1 2 6 . Utility 26 | . . 2 . 1 2 . . . . . 1 . . . 2 2 . 1 . . . . . 2 . . 1 1 6 5 . Weapon 19 | . 1 3 . 3 . . . 2 . . . . . . 1 1 . 1 . 1 1 . . 1 . . . . 2 2 . Highest Loss Streak 10 | . 1 3 . 1 1 . . 2 . 1 2 . . . 4 2 . 2 . 1 1 . . 5 . . 2 2 10 8 . Average Slot Usage (%) 88 | . 85 90 100 89 95 88 99 90 84 88 90 98 100 100 88 72 58 81 98 95 95 94 95 93 92 94 89 80 83 38 68 Engine 5 | . 14 10 11 9 9 6 7 7 7 3 2 . . . . . . 4 . . . . . . . . . 1 . . . Core 2 | . . . . . . . . . . . 1 6 6 6 3 . . 5 11 11 11 11 9 6 5 5 4 . 5 1 1 Treads 14 | . 28 29 33 27 25 1 . . . . . . . . . . . . . . . . . . . . . . . . . Flight 10 | . . . . . . 21 23 23 23 23 25 26 26 26 26 19 17 15 23 23 23 23 20 20 21 21 16 12 13 10 19 Device 4 | . . 10 11 9 9 . . . . . . . . . 3 5 5 . . . . . . . . . . 3 3 1 9 Storage 8 | . 14 16 22 18 18 1 . . . . . . . . . . . . . . . . . . . . . . . . 2 Processor 1 | . . . . . . . . . . . . . . . . . . 4 5 5 5 5 5 5 5 5 5 4 4 4 4 Hackware 18 | . . . . . . 28 38 38 38 38 37 40 40 40 33 32 29 39 35 35 35 35 42 42 42 42 42 39 39 18 23 Protection 7 | . . 2 . 8 16 17 14 15 15 15 13 13 13 13 13 10 5 5 11 11 10 11 9 8 8 10 9 4 3 . . Energy Gun 1 | . 7 3 . . 3 . . . . . 1 . . . . . . . . . 1 . . . . . . . . . . Energy Cannon 5 | . . 10 22 16 . . . . . . . . . . . . . . . . . . . . . . . . . . . Ballistic Gun 1 | . 20 5 . . . . . . . . . . . . . . . . . . . . . . . . . . . . . Launcher 1 | . . . . 1 11 1 . 1 . . . . . . . . . . . . . . 2 1 . . . . . . . Slashing Weapon 1 | . . . . . . 1 7 1 . 7 6 6 6 . . . . . . . . . 2 5 5 5 5 4 3 . 4 Naked Turns . | . . . . . . . . . . . . . . . . . . . . . . . . . . . . . . . . Heaviest Build 68 | 12 13 53 53 68 61 59 15 17 15 15 18 15 15 15 15 8 3 17 18 18 25 17 22 25 30 30 30 26 29 16 45 Greatest Support 66 | 40 40 60 60 60 66 66 18 18 18 18 20 18 18 18 18 26 8 32 32 32 42 42 42 46 33 33 33 33 33 23 51 Greatest Overweight (x) 7 | . . . . 1 2 . . . . 1 1 . . . . . . . . . . . . 1 . . 7 . . 1 . Average Overweight (x) . | . . . . . . . . . . . . . . . . . . . . . . . . . . . . . . . . Largest Inventory Capacity 16 | 6 6 16 16 16 16 16 4 4 4 4 4 4 4 4 4 4 4 4 4 4 4 4 4 4 4 4 4 4 4 4 8 Average Capacity 8 | 5 6 12 16 16 16 4 4 4 4 4 4 4 4 4 4 4 4 4 4 4 4 4 4 4 4 4 4 4 4 4 5 Most Carried 16 | 4 6 16 16 16 16 16 4 4 4 3 4 4 4 4 4 4 4 4 4 4 4 4 4 4 3 2 4 4 4 4 5 Average Carried 7 | 1 3 9 16 15 15 4 3 3 3 3 3 4 4 3 2 3 4 3 4 4 3 4 2 3 2 2 3 1 3 2 3 Final Capacity 16 | 6 6 16 16 16 16 4 4 4 4 4 4 4 4 4 4 4 4 4 4 4 4 4 4 4 4 4 4 4 4 4 8 Final Carried 16 | 1 6 16 16 16 16 3 3 4 3 3 4 4 4 4 2 4 4 4 4 4 4 4 4 2 2 2 3 1 3 4 4 Class Distribution -------------------- 32% | Wizard-Sprinter 26% | Mutant 22% | Scavenger-Mutant 6% | Wizard-Mutant 6% | Hacker-Sprinter Dominant Class ---------------- Mutant | -10/Materials Scavenger-Mutant | -9/Materials Scavenger-Mutant | -9/Mines Mutant | -8/Materials Mutant | -8/Storage Hacker-Sprinter | -7/Factory Hacker-Sprinter | -7/Lower Caves Hacker-Sprinter | -7/Lower Caves Hacker-Sprinter | -7/Data Miner Hacker-Sprinter | -6/Proximity Caves Wizard-Sprinter | -6/Factory Wizard-Sprinter | -6/Lower Caves Wizard-Sprinter | -6/Lower Caves Wizard-Sprinter | -6/Zion Hacker-Mutant | -5/Proximity Caves Wizard-Mutant | -5/Factory Wizard-Mutant | -5/Waste Wizard-Sprinter | -5/Factory Wizard-Sprinter | -5/Upper Caves Wizard-Sprinter | -5/Upper Caves Wizard-Sprinter | -5/Warlord Wizard-Sprinter | -4/Proximity Caves Wizard-Sprinter | -4/Factory Wizard-Sprinter | -4/Extension Wizard-Sprinter | -4/Cetus Wizard-Sprinter | -4/Archives Wizard-Sprinter | -4/Hub_04(d) Wizard-Sprinter | -3/Research Wizard-Sprinter | -3/Quarantine Hacker-Mutant | -2/Research Wizard-Mutant | -1/Access Resources | -11 -10 -9 -9 -8 -8 -7 -7 -7 -7 -6 -6 -6 -6 -6 -5 -5 -5 -5 -5 -5 -5 -4 -4 -4 -4 -4 -4 -3 -3 -2 -1 ----------- Run | Scr Mat Mat Min Mat Sto Fac Low Low Dat Pro Fac Low Low Zio Pro Fac Was Fac Upp Upp War Pro Fac Ext Cet Arc Hub Res Qua Res Acc Matter Collected 2794 | 310 100 573 . 164 441 160 30 65 . 10 43 67 . 20 . . . 25 113 25 . 20 74 183 10 . 35 30 109 98 89 Remotely . | . . . . . . . . . . . . . . . . . . . . . . . . . . . . . . . . Salvage Created 7477 | 79 379 1594 225 2357 1171 . 105 147 . . 43 57 36 . . 21 . 390 68 . . . 106 232 . . 87 65 117 . 198 Parts 366 | . 16 88 19 105 57 . 8 9 . . 1 5 3 . . 4 . 13 . . . . 6 11 . . 1 8 5 . 7 Haulers Intercepted 16 | . 1 5 . 3 6 . . . . . . . . . . . . 1 . . . . . . . . . . . . . Recyclers Shooed 4 | . . 1 . 2 1 . . . . . . . . . . . . . . . . . . . . . . . . . . Parts Field Recycled . | . . . . . . . . . . . . . . . . . . . . . . . . . . . . . . . . Retrieved Matter . | . . . . . . . . . . . . . . . . . . . . . . . . . . . . . . . . Parts Self-Destructed 43 | . . . . . . . 7 16 . 9 . 4 3 . . . . . . . 4 . . . . . . . . . . Prevented 6 | . . . . . . . . . . . . . . . . . . . . . 6 . . . . . . . . . . Kills | -11 -10 -9 -9 -8 -8 -7 -7 -7 -7 -6 -6 -6 -6 -6 -5 -5 -5 -5 -5 -5 -5 -4 -4 -4 -4 -4 -4 -3 -3 -2 -1 ------- Run | Scr Mat Mat Min Mat Sto Fac Low Low Dat Pro Fac Low Low Zio Pro Fac Was Fac Upp Upp War Pro Fac Ext Cet Arc Hub Res Qua Res Acc Combat Hostiles Destroyed 119 | . 7 27 6 41 16 . 1 5 . . . . . . . 2 . 7 . . . . 2 3 . . 1 1 . . . Melee 10 | . . 2 . 1 . . 1 . . . . . . . . . . 1 . . . . 1 3 . . . 1 . . . Guns 24 | . 7 11 . . 6 . . . . . . . . . . . . . . . . . . . . . . . . . . Cannons 44 | . . 10 6 25 3 . . . . . . . . . . . . . . . . . . . . . . . . . . AOE 31 | . . 4 . 7 6 . . 5 . . . . . . . 2 . 6 . . . . 1 . . . . . . . . Classes Destroyed 16 | 1 3 5 1 2 1 . 2 . . . . . . . . . . . . . . . . . . . . . 1 . . Worker 6 | . . 2 . 1 3 . . . . . . . . . . . . . . . . . . . . . . . . . . Builder 7 | . . 2 1 1 1 . . . . . . . . . . 1 . . . . . . 1 . . . . . . . . Tunneler 1 | . . . 1 . . . . . . . . . . . . . . . . . . . . . . . . . . . . Hauler 16 | . 1 5 . 3 6 . . . . . . . . . . . . 1 . . . . . . . . . . . . . Recycler 4 | 1 . 2 . 1 . . . . . . . . . . . . . . . . . . . . . . . . . . . Minesweeper 4 | . . . . . . . 1 . . . . 2 1 . . . . . . . . . . . . . . . . . . Operator 12 | . 1 4 . 2 . . 1 . . . 1 . . . . . . 1 . . . . 1 . . . . . 1 . . Watcher 4 | . . . . 1 1 . . . . . 1 . . . . . . 1 . . . . . . . . . . . . . Swarmer 21 | . . 4 4 7 . . . 3 . . . . . . . 2 . 1 . . . . . . . . . . . . . Grunt 61 | . 7 17 . 23 5 . . 1 . . . . . . . . . 6 . . . . . 2 . . . . . . . Brawler 1 | . . . . 1 . . . . . . . . . . . . . . . . . . . . . . . . . . . Duelist 4 | . . 1 . 1 1 . . 1 . . . . . . . . . . . . . . . . . . . . . . . Researcher 2 | . . . . . . . . . . . . . . . . . . . . . . . . . . . . . 2 . . Sentry 28 | . . 5 2 9 9 . . . . . . . . . . . . . . . . . 1 1 . . 1 . . . . Hunter 1 | . . . . . 1 . . . . . . . . . . . . . . . . . . . . . . . . . . Programmer 3 | . . . . . . . 1 . . . . . . . . . . . . . . . 1 . . . . 1 . . . Decomposer 1 | . . . . . . . . . . . . . . . . . . . 1 . . . . . . . . . . . . Wizard 3 | . . . . . . . . . . . . . . . . . . . . . . . . . . . . . . . 3 Best Kill Streak 15 | 1 3 15 5 12 7 . 2 5 . . 1 1 1 . . 3 . 8 . . . . 2 2 . . 1 1 1 . . Combat Bots Only 11 | . 2 4 4 11 4 . 1 5 . . . . . . . 2 . 6 . . . . 1 2 . . 1 1 . . . Max Kills in Single Turn 5 | 1 1 3 1 3 2 . 1 3 . . 1 1 1 . . 3 . 5 1 . . . 2 1 . . 1 1 1 . 1 Gunslinging . | . . . . . . . . . . . . . . . . . . . . . . . . . . . . . . . . Exploded 5 | . . 3 . 3 2 . . 3 . . . . . . . 2 . 5 . . . . 1 . . . . . . . . Melee 1 | . . 1 . 1 . . 1 . . . . . . . . . . 1 . . . . 1 1 . . . 1 . . . Uniques/NPCs Destroyed . | . . . . . . . . . . . . . . . . . . . . . . . . . . . . . . . . Combat | -11 -10 -9 -9 -8 -8 -7 -7 -7 -7 -6 -6 -6 -6 -6 -5 -5 -5 -5 -5 -5 -5 -4 -4 -4 -4 -4 -4 -3 -3 -2 -1 -------- Run | Scr Mat Mat Min Mat Sto Fac Low Low Dat Pro Fac Low Low Zio Pro Fac Was Fac Upp Upp War Pro Fac Ext Cet Arc Hub Res Qua Res Acc Damage Taken 13873 | . 599 1513 317 1637 994 . 197 358 . 170 677 14 34 . 275 412 . 960 . 189 84 22 572 864 31 273 360 323 1131 1817 50 Core 4014 | . 149 216 78 252 119 . 93 172 . 73 242 14 23 . 62 98 . 345 . 58 . . 236 224 . 83 23 110 283 1061 . Absorbed by Shields 176 | . . . . . . . . . . . . . . . . . . . . . . . . 176 . . . . . . . Core Remaining (%) 54 | 100 40 . 26 . 32 . . . . 51 . . . . 59 . . . . . . 49 . . . . 50 . 69 20 100 Volleys Fired 316 | 10 41 94 18 88 53 . . 5 . . . . . . . . . . . 1 . . 1 . . . 2 . 3 . . Largest 2 | 2 2 2 2 2 2 . . 1 . . . . . . . . . . . 1 . . 1 . . . 1 . 1 . . Hottest 126 | 40 70 126 126 126 105 . . 33 . . . . . . . . . . . 20 . . 80 . . . 105 . 40 . . Shots Fired 557 | 20 82 172 29 148 94 . . 5 . . . . . . . . . . . 1 . . 1 . . . 2 . 3 . . Gun 256 | 20 82 116 . . 37 . . . . . . . . . . . . . . . . . . . . . . . 1 . . Cannon 254 | . . 53 29 141 29 . . . . . . . . . . . . . . . . . . . . . 2 . . . . Launcher 44 | . . 3 . 7 28 . . 5 . . . . . . . . . . . . . . 1 . . . . . . . . Special 3 | . . . . . . . . . . . . . . . . . . . . 1 . . . . . . . . 2 . . Kinetic 185 | 20 68 68 . . 29 . . . . . . . . . . . . . . . . . . . . . . . . . . Thermal 132 | . 14 77 . . 37 . . . . . . . . . . . . . . 1 . . . . . . 2 . 1 . . Explosive 10 | . . 3 . . 1 . . 5 . . . . . . . . . . . . . . 1 . . . . . . . . Electromagnetic 228 | . . 24 29 148 27 . . . . . . . . . . . . . . . . . . . . . . . . . . Robot Hit Streak 23 | 5 7 12 16 23 17 . . . . . . . . . . . . . . 13 . . . . . . . . 15 . . Robot Miss Streak 5 | 2 5 3 1 2 2 . . . . . . . . . . . . . . . . . . . . . . . . . . Penetration Max . | . . . . . . . . . . . . . . . . . . . . . . . . . . . . . . . . Secondary Targets 2 | . 1 1 . . . . . . . . . . . . . . . . . . . . . . . . . . . . . Max Gunslinging Chain 1 | . 1 1 . . . . . . . . . . . . . . . . . . . . . . . . . . . . . Shots Hit Robots 450 | 12 50 113 22 113 60 4 11 . . . 9 3 1 1 . 7 . 2 2 1 . . 12 9 . . . 2 6 . 10 Core Hits 250 | 2 21 68 7 63 31 . 4 7 . . 2 2 1 . . 4 . 19 1 . . . 6 4 . . 1 1 3 . 3 Critical Hits 10 | . 1 4 . 1 1 . . . . . . . . . . . . . . 1 . . . . . . . 1 . . 1 Critical Kills 3 | . . 2 . . 1 . . . . . . . . . . . . . . . . . . . . . . . . . . Critical Parts Destroyed 7 | . 1 2 . 1 . . . . . . . . . . . . . . . 1 . . . . . . . 1 . . 1 Melee Attacks 165 | . . . . . . 4 15 . . 1 26 4 2 1 . 11 . 14 2 1 . . 19 10 2 4 4 5 21 1 18 Impact 30 | . . . . . . . . . . . . . . . . 11 . 14 2 1 . . 2 . . . . . . . . Slashing 130 | . . . . . . . 15 . . 1 26 4 2 . . . . . . . . . 17 10 2 4 4 5 21 1 18 Piercing . | . . . . . . . . . . . . . . . . . . . . . . . . . . . . . . . . Sneak Attacks 27 | . . . . . . 4 2 . . . 1 2 1 1 . . . 1 1 . . . . 2 . . . . 2 . 10 Combat Hostiles 2 | . . . . . . . . . . . . . . . . . . . . . . . . 2 . . . . . . . Follow-up Attacks 2 | . . . . . . . . . . . . . . . . . . . . . . . 2 . . . . . . . . Damage Inflicted 17734 | 132 599 2258 508 3650 2225 . 522 317 . . 473 286 132 . . 486 . 1318 252 10 . . 986 749 . . 167 129 457 . 2078 Guns 2327 | 132 597 1008 . . 590 . . . . . . . . . . . . . . . . . . . . . . . . . . Cannons 4692 | . . 902 508 2830 452 . . . . . . . . . . . . . . . . . . . . . . . . . . Explosions 4557 | . . 322 . 765 1150 . . 317 . . . . . . . 272 . 1189 . . . . 375 . . . 167 . . . . Melee 6032 | . . . . . . . 522 . . . 473 286 132 . . 214 . 129 252 . . . 611 749 . . . 129 457 . 2078 Ramming 116 | . 2 26 . 55 33 . . . . . . . . . . . . . . . . . . . . . . . . . . Kinetic 1656 | 132 482 590 . . 452 . . . . . . . . . . . . . . . . . . . . . . . . . . Thermal 2946 | . 115 874 . 368 739 . . . . . . . . . . 272 . 313 . 10 . . 255 . . . . . . . . Explosive 1531 | . . 322 . . 24 . . 317 . . . . . . . . . 748 . . . . 120 . . . . . . . . Electromagnetic 5453 | . . 446 508 3227 977 . . . . . . . . . . . . 128 . . . . . . . . 167 . . . . Impact 641 | . . . . . . . . . . . . . . . . 214 . 129 252 . . . 46 . . . . . . . . Slashing 5391 | . . . . . . . 522 . . . 473 286 132 . . . . . . . . . 565 749 . . . 129 457 . 2078 Piercing . | . . . . . . . . . . . . . . . . . . . . . . . . . . . . . . . . Highest Corruption 11 | . . . . . . . 1 2 2 2 . . . . . . . 1 1 1 1 . . . . . 2 1 11 . . Average Corruption 1 | . . . . . . . 1 1 2 2 . . . . . . . 1 1 1 1 . . . . . 2 1 2 . . Corruption Purged . | . . . . . . . . . . . . . . . . . . . . . . . . . . . . . . . . Effects 13 | . . . . . . . 1 1 . 1 . . . . . . . . 1 1 . . . . . . . . 8 . . Message Errors 4 | . . . . . . . . 1 . 1 . . . . . . . . . . . . . . . . . . 2 . . Matter Fused 1 | . . . . . . . . . . . . . . . . . . . . . . . . . . . . . 1 . . Energy Discharges 1 | . . . . . . . . . . . . . . . . . . . . . . . . . . . . . 1 . . Data Loss (minor) 5 | . . . . . . . 1 . . . . . . . . . . . 1 1 . . . . . . . . 2 . . Misdirections 2 | . . . . . . . . . . . . . . . . . . . . . . . . . . . . . 2 . . Overload Shots . | . . . . . . . . . . . . . . . . . . . . . . . . . . . . . . . . Overflow Damage 1838 | . . 29 8 70 24 . 26 8 . . 74 31 . . . 8 . 86 111 . . . 56 223 . . 1 . 170 . 913 Projectiles 114 | . . 22 8 68 16 . . . . . . . . . . . . . . . . . . . . . . . . . . Explosions 85 | . . 7 . 2 8 . . 8 . . . . . . . 3 . . . . . . 56 . . . 1 . . . . Melee 1639 | . . . . . . . 26 . . . 74 31 . . . 5 . 86 111 . . . . 223 . . . . 170 . 913 Knockbacks 6 | . . . . 2 3 . . . . . . . . . . . . 1 . . . . . . . . . . . . . Impact 3 | . . . . 2 . . . . . . . . . . . . . 1 . . . . . . . . . . . . . Kinetic 3 | . . . . . 3 . . . . . . . . . . . . . . . . . . . . . . . . . . Secondary . | . . . . . . . . . . . . . . . . . . . . . . . . . . . . . . . . Self-Inflicted Damage 271 | . . . . 53 81 . . 33 . . . . . . . . . . . . . . . . . . 104 . . . . Shots 8 | . . . . 2 3 . . 2 . . . . . . . . . . . . . . . . . . 1 . . . . Rammed 27 | . 1 15 . 8 3 . . . . . . . . . . . . . . . . . . . . . . . . . . Targets Rammed 31 | . 1 17 . 9 4 . . . . . . . . . . . . . . . . . . . . . . . . . . Kicked . | . . . . . . . . . . . . . . . . . . . . . . . . . . . . . . . . Crushed 4 | . . 2 . 1 1 . . . . . . . . . . . . . . . . . . . . . . . . . . Highest Temperature 287 | . 201 287 72 108 144 . . . . . 3 . . . . . . 10 . 5 8 . 54 37 . 24 47 . . . . Average Temperature 34 | . 71 24 26 29 54 . . . . . 2 . . . . . . 4 . 3 8 . 15 14 . 17 14 . . . . Received Heat Transfer 3145 | . 342 546 45 711 261 . 36 9 . 30 150 . 20 . 78 108 . 186 . 9 . . 129 164 . 36 45 27 159 45 9 Siege Activations . | . . . . . . . . . . . . . . . . . . . . . . . . . . . . . . . . Robots Corrupted 12 | . . . . 8 3 . . . . . . . . . . . . . . . . . . . . . 1 . . . . Combat Hostiles 10 | . . . . 8 1 . . . . . . . . . . . . . . . . . . . . . 1 . . . . Parts Fried 33 | . . 3 7 16 4 . . . . . . . . . . . . 2 . . . . . . . . 1 . . . . Impact Corruptions 9 | . . . . . . . . . . . . . . . . 1 . 3 5 . . . . . . . . . . . . Robots Melted . | . . . . . . . . . . . . . . . . . . . . . . . . . . . . . . . . Combat Hostiles . | . . . . . . . . . . . . . . . . . . . . . . . . . . . . . . . . Parts Melted 3 | . . 2 . . . . . . . . . . . . . 1 . . . . . . . . . . . . . . . Heat Transferred 4516 | . 333 1773 . 600 1273 . . . . . . . . . . 200 . 150 . 37 . . 150 . . . . . . . . Parts Sabotaged . | . . . . . . . . . . . . . . . . . . . . . . . . . . . . . . . . Parts Stolen . | . . . . . . . . . . . . . . . . . . . . . . . . . . . . . . . . Parts Stripped . | . . . . . . . . . . . . . . . . . . . . . . . . . . . . . . . . Power Chain Reactions 7 | . . . . 5 2 . . . . . . . . . . . . . . . . . . . . . . . . . . Missiles Intercepted . | . . . . . . . . . . . . . . . . . . . . . . . . . . . . . . . . Alert | -11 -10 -9 -9 -8 -8 -7 -7 -7 -7 -6 -6 -6 -6 -6 -5 -5 -5 -5 -5 -5 -5 -4 -4 -4 -4 -4 -4 -3 -3 -2 -1 ------- Run | Scr Mat Mat Min Mat Sto Fac Low Low Dat Pro Fac Low Low Zio Pro Fac Was Fac Upp Upp War Pro Fac Ext Cet Arc Hub Res Qua Res Acc Peak Influence 1149 | 5 257 415 205 1076 999 464 . . . . 992 . . . . 334 93 1149 . . . . 692 514 713 476 653 430 379 823 544 Initial 493 | . 3 33 120 29 414 413 . . . . 126 . . . . . 63 65 . . . . 9 338 246 285 166 358 120 58 493 Average 363 | . 111 226 142 467 755 282 . . . . 472 . . . . 102 77 633 . . . . 170 305 509 422 249 323 206 390 510 Maximum Alert Level 4 | . 1 2 1 3 3 2 . . . . 3 . . . . 1 . 4 . . . . 2 2 3 2 2 2 1 3 2 Low Security (%) 38 | 100 79 36 98 30 . 57 . . . . 29 . . . . 75 100 37 . . . . 55 29 . . 19 27 31 32 . Level 1 26 | . 20 60 1 9 . . . . . . 30 . . . . 24 . . . . . . 34 47 51 28 75 41 68 27 . Level 2 18 | . . 3 . 43 36 42 . . . . . . . . . . . . . . . . 10 22 9 71 5 30 . 18 100 Level 3 16 | . . . . 16 63 . . . . . 39 . . . . . . 57 . . . . . . 39 . . . . 21 . Level 4 . | . . . . . . . . . . . . . . . . . . 4 . . . . . . . . . . . . . Level 5 . | . . . . . . . . . . . . . . . . . . . . . . . . . . . . . . . . High Security . | . . . . . . . . . . . . . . . . . . . . . . . . . . . . . . . . Max Security . | . . . . . . . . . . . . . . . . . . . . . . . . . . . . . . . . Squads Dispatched 33 | . 1 5 . 8 . 1 . 1 . 1 3 . . . . 1 . 6 . . . . 2 . . . . 1 2 1 . Investigation 11 | . . 2 . 4 . 1 . . . . . . . . . . . 3 . . . . 1 . . . . . . . . Extermination 3 | . . . . . . . . . . . 1 . . . . . . . . . . . 1 . . . . . 1 . . Reinforcement 14 | . 1 3 . 3 . . . . . . 2 . . . . 1 . 1 . . . . . . . . . 1 1 1 . Assault 4 | . . . . 1 . . . 1 . 1 . . . . . . . 1 . . . . . . . . . . . . . Garrison 1 | . . . . . . . . . . . . . . . . . . 1 . . . . . . . . . . . . . Intercept . | . . . . . . . . . . . . . . . . . . . . . . . . . . . . . . . . Construction Impeded 1 | . . . . 1 . . . . . . . . . . . . . . . . . . . . . . . . . . . Haulers Reinforced . | . . . . . . . . . . . . . . . . . . . . . . . . . . . . . . . . Stealth | -11 -10 -9 -9 -8 -8 -7 -7 -7 -7 -6 -6 -6 -6 -6 -5 -5 -5 -5 -5 -5 -5 -4 -4 -4 -4 -4 -4 -3 -3 -2 -1 --------- Run | Scr Mat Mat Min Mat Sto Fac Low Low Dat Pro Fac Low Low Zio Pro Fac Was Fac Upp Upp War Pro Fac Ext Cet Arc Hub Res Qua Res Acc Distress Signals 34 | . 2 8 . 6 5 1 . . . . . . . . . . . 2 . . . . 1 1 . . 3 . 2 3 . Communications Jammed . | . . . . . . . . . . . . . . . . . . . . . . . . . . . . . . . . Distress Signals . | . . . . . . . . . . . . . . . . . . . . . . . . . . . . . . . . Times Spotted 531 | . 21 52 6 70 21 9 5 11 . 21 35 1 1 . 6 12 6 38 1 15 9 4 13 23 13 4 14 11 39 69 1 Peak Tracking Total 19 | . 4 6 4 9 5 5 4 12 . 10 14 1 1 . 6 7 6 12 1 19 11 5 6 9 8 4 9 8 18 17 1 Tactical Retreats 68 | . . 1 . 8 1 . 2 3 . 4 10 . . . . 2 . 11 . . . 1 3 3 . . 4 . 8 7 . Traps | -11 -10 -9 -9 -8 -8 -7 -7 -7 -7 -6 -6 -6 -6 -6 -5 -5 -5 -5 -5 -5 -5 -4 -4 -4 -4 -4 -4 -3 -3 -2 -1 ------- Run | Scr Mat Mat Min Mat Sto Fac Low Low Dat Pro Fac Low Low Zio Pro Fac Was Fac Upp Upp War Pro Fac Ext Cet Arc Hub Res Qua Res Acc Traps Triggered 13 | . . 1 . 2 . . . . . . . . . . . 2 . 2 . . . . . 3 . . 2 1 . . . Indirectly . | . . . . . . . . . . . . . . . . . . . . . . . . . . . . . . . . Trap Hack Attempts 8 | . . . . . . 4 . . . . . 4 . . . . . . . . . . . . . . . . . . . Triggered . | . . . . . . . . . . . . . . . . . . . . . . . . . . . . . . . . Disarmed 1 | . . . . . . 1 . . . . . . . . . . . . . . . . . . . . . . . . . Reprogrammed 58 | . . . . . . 6 . . . . . 1 . . . . . 6 . . . . 11 9 . . 10 . 15 . . Reused 8 | . . . . . . 1 . . . . . . . . . . . 3 . . . . . . . . 2 . 2 . . Traps Extracted . | . . . . . . . . . . . . . . . . . . . . . . . . . . . . . . . . Installed 7 | . . . . . . . . . . . . 7 . . . . . . . . . . . . . . . . . . . Triggered 17 | . . . . . . 1 . . . . . . . . . . . 3 1 3 5 . . . . . 2 . 2 . . Machines | -11 -10 -9 -9 -8 -8 -7 -7 -7 -7 -6 -6 -6 -6 -6 -5 -5 -5 -5 -5 -5 -5 -4 -4 -4 -4 -4 -4 -3 -3 -2 -1 ---------- Run | Scr Mat Mat Min Mat Sto Fac Low Low Dat Pro Fac Low Low Zio Pro Fac Was Fac Upp Upp War Pro Fac Ext Cet Arc Hub Res Qua Res Acc Machines Disabled 60 | . . 1 . 6 9 . . . . . 1 . 1 . . 5 . 17 . . . . 4 1 2 1 9 . 3 . . Max in Single Turn 9 | . . 1 . 1 3 . . . . . 1 . 1 . . 5 . 8 . . . . 4 . . 1 9 . 1 . . Garrison Access 3 | . . . . . . . . . . . . . . . . . . . . . . . . . . . . . . 3 . Network Hub 1 | . . . . . . . . . . . . . . . . . . . . . . . . . . . 1 . . . . Machines Sabotaged . | . . . . . . . . . . . . . . . . . . . . . . . . . . . . . . . . Garrisons Compromised . | . . . . . . . . . . . . . . . . . . . . . . . . . . . . . . . . Overloaded Fab Kills . | . . . . . . . . . . . . . . . . . . . . . . . . . . . . . . . . Fab Network Shutdowns 2 | . . . . . . . . . . . 1 . . . . . . . . . . . 1 . . . . . . . . Hacking | -11 -10 -9 -9 -8 -8 -7 -7 -7 -7 -6 -6 -6 -6 -6 -5 -5 -5 -5 -5 -5 -5 -4 -4 -4 -4 -4 -4 -3 -3 -2 -1 --------- Run | Scr Mat Mat Min Mat Sto Fac Low Low Dat Pro Fac Low Low Zio Pro Fac Was Fac Upp Upp War Pro Fac Ext Cet Arc Hub Res Qua Res Acc Machines Accessed 124 | . 3 8 . 10 7 6 . . 4 . 9 . . . . 2 . 11 . 1 5 . 11 9 3 . 6 4 15 5 5 Terminals 85 | . 3 5 . 8 7 5 . . . . 6 . . . . 2 . 5 . 1 . . 5 9 3 . 6 3 12 2 3 Fabricators 6 | . . . . . . 1 . . . . 1 . . . . . . 1 . . . . 3 . . . . . . . . Repair Stations 9 | . . 1 . . . . . . . . 1 . . . . . . 1 . . . . 2 . . . . 1 2 . 1 Recycling Units 1 | . . . . . . . . . . . . . . . . . . 1 . . . . . . . . . . . . . Scanalyzers 8 | . . 2 . 2 . . . . . . 1 . . . . . . 2 . . . . 1 . . . . . . . . Garrison Access 6 | . . . . . . . . . . . . . . . . . . 1 . . . . . . . . . . 1 3 1 Total Hacks 578 | . 13 26 . 35 20 22 . . 26 . 34 . . . . 13 . 50 . 8 13 . 89 62 15 . 40 22 58 19 13 Successful 498 | . 8 19 . 23 12 18 . . 26 . 29 . . . . 11 . 49 . 8 13 . 79 60 14 . 39 17 52 13 8 Failed 79 | . 5 7 . 12 8 4 . . . . 5 . . . . 2 . 1 . . . . 10 2 . . 1 5 6 6 5 Catastrophic 7 | . . 2 . 1 . . . . . . . . . . . . . . . . . . . . . . . 1 . 2 1 Database Lockouts 1 | . . . . . . . . . . . . . . . . . . . . . . . . . 1 . . . . . . Manual 247 | . 12 13 . 20 2 8 . . . . 15 . . . . 8 . 17 . . 1 . 38 32 1 . 23 10 30 11 6 Terminals 428 | . 13 19 . 26 20 18 . . . . 23 . . . . 13 . 26 . 8 . . 57 62 15 . 40 21 44 13 10 Fabricators 26 | . . . . . . 4 . . . . 5 . . . . . . 7 . . . . 10 . . . . . . . . Repair Stations 35 | . . 1 . . . . . . . . 2 . . . . . . 5 . . . . 14 . . . . 1 11 . 1 Recycling Units 2 | . . . . . . . . . . . . . . . . . . 2 . . . . . . . . . . . . . Scanalyzers 33 | . . 6 . 9 . . . . . . 4 . . . . . . 6 . . . . 8 . . . . . . . . Garrison Access 15 | . . . . . . . . . . . . . . . . . . 4 . . . . . . . . . . 3 6 2 Terminal Hacks 284 | . 5 8 . 9 11 10 . . 26 . 15 . . . . 7 . 18 . 8 13 . 33 39 14 . 24 12 23 4 5 Record 41 | . . . . . . . . . 11 . 1 . . . . . . . . 8 5 . 1 . 13 . . . 2 . . Part Schematic 32 | . 1 . . 1 2 1 . . 6 . 1 . . . . 1 . 3 . . . . 9 6 . . 1 . . . . Robot Schematic 9 | . . . . . . . . . 6 . . . . . . . . 1 . . . . . 2 . . . . . . . Robot Analysis 15 | . 3 . . . . . . . . . . . . . . . . 2 . . . . 3 5 . . 1 . 1 . . Prototype ID Bank 20 | . . . . . 1 . . . 3 . 1 . . . . . . . . . 6 . 2 2 . . 2 1 1 . 1 Open Door 6 | . . . . . 1 . . . . . . . . . . . . . . . 2 . . . 1 . . . 1 . 1 Level Access Points 9 | . 1 . . . . . . . . . . . . . . . . 1 . . . . 1 . . . 1 1 2 1 1 Branch Access Points 9 | . . . . 1 . 1 . . . . 1 . . . . 1 . 1 . . . . 1 1 . . . 1 . 1 . Emergency Access Points 1 | . . . . . . . . . . . . . . . . . . . . . . . . . . . 1 . . . . Machine Index 6 | . . . . . . . . . . . . . . . . . . 1 . . . . 1 1 . . . 1 1 1 . Terminal Index 7 | . . . . 1 1 1 . . . . 1 . . . . . . . . . . . 1 . . . 1 . . . 1 Fabricator Index 4 | . . . . . . 1 . . . . 1 . . . . 1 . . . . . . . 1 . . . . . . . Repair Station Index 1 | . . . . . . . . . . . 1 . . . . . . . . . . . . . . . . . . . . Recycling Unit Index 1 | . . . . . . . . . . . . . . . . . . . . . . . . . . . . 1 . . . Scanalyzer Index 2 | . . 1 . 1 . . . . . . . . . . . . . . . . . . . . . . . . . . . Garrison Index 2 | . . . . . . . . . . . . . . . . 1 . . . . . . . . . . 1 . . . . Alert Level 23 | . . 2 . . 1 1 . . . . 2 . . . . 1 . 2 . . . . 2 5 . . 2 1 3 1 . Unreport Threat 13 | . . 1 . . . 2 . . . . . . . . . 1 . 1 . . . . 1 3 . . . 2 2 . . Locate Traps 9 | . . . . 1 2 . . . . . 1 . . . . . . 1 . . . . . 1 . . 3 . . . . Reprogram Traps 13 | . . . . . . 1 . . . . . . . . . . . 1 . . . . 2 2 . . 4 . 3 . . Dispatch Records 4 | . . . . . . . . . . . 1 . . . . . . . . . . . 2 . . . . 1 . . . Surveillance Status 1 | . . . . . . . . . . . . . . . . . . . . . . . 1 . . . . . . . . Patrol Status 1 | . . . . . . . . . . . 1 . . . . . . . . . . . . . . . . . . . . Transport Status 1 | . . . . . 1 . . . . . . . . . . . . . . . . . . . . . . . . . . Investigation Status 1 | . . . . . . . . . . . . . . . . . . . . . . . . 1 . . . . . . . Extermination Status 1 | . . . . . . . . . . . . . . . . . . . . . . . 1 . . . . . . . . Recall Investigation 2 | . . . . . . . . . . . 1 . . . . . . . . . . . . 1 . . . . . . . Recall Extermination 2 | . . . . . . . . . . . . . . . . . . . . . . . 1 . . . . . 1 . . Recall Reinforcements 1 | . . . . . . . . . . . . . . . . 1 . . . . . . . . . . . . . . . Hauler Manifests 10 | . . 2 . 1 2 1 . . . . . . . . . . . 1 . . . . 1 1 . . 1 . . . . Registered Components 6 | . . . . . . . . . . . 1 . . . . . . 1 . . . . 1 1 . . 1 . 1 . . Registered Prototypes 4 | . . . . 1 . . . . . . . . . . . . . . . . . . . 1 . . 1 . 1 . . Zone Layout 27 | . . 2 . 2 . 1 . . . . 1 . . . . . . 2 . . . . 2 5 . . 4 3 4 . 1 Fabricator Hacks 16 | . . . . . . 4 . . . . 2 . . . . . . 5 . . . . 5 . . . . . . . . Network Status 1 | . . . . . . . . . . . . . . . . . . . . . . . 1 . . . . . . . . Load Schematic 7 | . . . . . . 2 . . . . 1 . . . . . . 2 . . . . 2 . . . . . . . . Build 8 | . . . . . . 2 . . . . 1 . . . . . . 3 . . . . 2 . . . . . . . . Repair Station Hacks 33 | . . 1 . . . . . . . . 1 . . . . . . 5 . . . . 14 . . . . 1 10 . 1 Scan Component 12 | . . . . . . . . . . . . . . . . . . 2 . . . . 7 . . . . . 3 . . Repair 12 | . . . . . . . . . . . . . . . . . . 2 . . . . 7 . . . . . 3 . . Refit 9 | . . 1 . . . . . . . . 1 . . . . . . 1 . . . . . . . . . 1 4 . 1 Recycling Unit Hacks 2 | . . . . . . . . . . . . . . . . . . 2 . . . . . . . . . . . . . Report Inventory 1 | . . . . . . . . . . . . . . . . . . 1 . . . . . . . . . . . . . Retrieve Components 1 | . . . . . . . . . . . . . . . . . . 1 . . . . . . . . . . . . . Scanalyzer 27 | . . 4 . 7 . . . . . . 4 . . . . . . 4 . . . . 8 . . . . . . . . Insert Component 14 | . . 2 . 4 . . . . . . 2 . . . . . . 2 . . . . 4 . . . . . . . . Analyze 13 | . . 2 . 3 . . . . . . 2 . . . . . . 2 . . . . 4 . . . . . . . . Garrison Access Hacks 3 | . . . . . . . . . . . . . . . . . . . . . . . . . . . . . . 3 . Seal Access 3 | . . . . . . . . . . . . . . . . . . . . . . . . . . . . . . 3 . Unauthorized Hacks 133 | . 3 6 . 7 1 4 . . . . 7 . . . . 4 . 15 . . . . 19 21 . . 15 4 19 6 2 Terminals 110 | . 3 4 . 5 1 4 . . . . 4 . . . . 4 . 7 . . . . 14 21 . . 15 4 16 6 2 Track 25 | . . . . 1 . . . . . . 1 . . . . 1 . 1 . . . . 4 4 . . 5 1 5 1 1 Assimilate 6 | . . . . . . 1 . . . . . . . . . . . 1 . . . . . 2 . . . 1 1 . . Botnet 35 | . 2 2 . 3 1 2 . . . . 2 . . . . 1 . 2 . . . . 3 5 . . 3 1 5 2 1 Detonate 9 | . . . . . . . . . . . . . . . . 1 . 1 . . . . 3 1 . . 2 . . 1 . Disrupt 23 | . . 1 . . . . . . . . . . . . . 1 . 1 . . . . 3 7 . . 4 1 3 2 . Operators 12 | . 1 1 . 1 . 1 . . . . 1 . . . . . . 1 . . . . 1 2 . . 1 . 2 . . Fabricators 10 | . . . . . . . . . . . 3 . . . . . . 2 . . . . 5 . . . . . . . . Report 1 | . . . . . . . . . . . . . . . . . . . . . . . 1 . . . . . . . . Prioritize 3 | . . . . . . . . . . . 1 . . . . . . 1 . . . . 1 . . . . . . . . Siphon 3 | . . . . . . . . . . . 1 . . . . . . 1 . . . . 1 . . . . . . . . Haulers 2 | . . . . . . . . . . . 1 . . . . . . . . . . . 1 . . . . . . . . Overload 1 | . . . . . . . . . . . . . . . . . . . . . . . 1 . . . . . . . . Repair Stations . | . . . . . . . . . . . . . . . . . . . . . . . . . . . . . . . . Recycling Units . | . . . . . . . . . . . . . . . . . . . . . . . . . . . . . . . . Scanalyzers 6 | . . 2 . 2 . . . . . . . . . . . . . 2 . . . . . . . . . . . . . Extract 6 | . . 2 . 2 . . . . . . . . . . . . . 2 . . . . . . . . . . . . . Garrison Access 7 | . . . . . . . . . . . . . . . . . . 4 . . . . . . . . . . 3 . . Broadcast 2 | . . . . . . . . . . . . . . . . . . 1 . . . . . . . . . . 1 . . Redirect 1 | . . . . . . . . . . . . . . . . . . 1 . . . . . . . . . . . . . Reprogram 2 | . . . . . . . . . . . . . . . . . . 1 . . . . . . . . . . 1 . . Watchers 2 | . . . . . . . . . . . . . . . . . . 1 . . . . . . . . . . 1 . . Data Cores Recovered 1 | . . 1 . . . . . . . . . . . . . . . . . . . . . . . . . . . . . Used 1 | . . 1 . . . . . . . . . . . . . . . . . . . . . . . . . . . . . Hacking Detections 76 | . 3 6 . 8 3 5 . . . . 9 . . . . 2 . 8 . 1 . . 6 6 1 . 3 4 7 2 2 Full Trace Events 1 | . . . . 1 . . . . . . . . . . . . . . . . . . . . . . . . . . . Feedback Events . | . . . . . . . . . . . . . . . . . . . . . . . . . . . . . . . . Feedback Blocked . | . . . . . . . . . . . . . . . . . . . . . . . . . . . . . . . . Robot Schematics Acquired 9 | . . . . . . . . . 6 . . . . . . . . 1 . . . . . 2 . . . . . . . Robots Built 2 | . . . . . . . . . . . 2 . . . . . . . . . . . . . . . . . . . . Matter 238 | . . . . . . . . . . . 238 . . . . . . . . . . . . . . . . . . . . Time 84 | . . . . . . . . . . . 84 . . . . . . . . . . . . . . . . . . . . Total Robot Build Rating 12 | . . . . . . . . . . . 12 . . . . . . . . . . . . . . . . . . . . Part Schematics Acquired 83 | . 1 14 . 12 2 1 . . 6 . 3 . . . . 1 . 23 . . . . 13 6 . . 1 . . . . Parts Built 9 | . . . . . . 3 . . . . . . . . . . . 4 . . . . 2 . . . . . . . . Matter 1318 | . . . . . . 292 . . . . . . . . . . . 550 . . . . 476 . . . . . . . . Time 551 | . . . . . . 146 . . . . . . . . . . . 237 . . . . 168 . . . . . . . . Total Part Build Rating 35 | . . . . . . 9 . . . . . . . . . . . 14 . . . . 12 . . . . . . . . Parts Repaired 12 | . . . . . . . . . . . . . . . . . . 2 . . . . 7 . . . . . 3 . . Time 474 | . . . . . . . . . . . . . . . . . . 108 . . . . 289 . . . . . 77 . . Parts Recycled . | . . . . . . . . . . . . . . . . . . . . . . . . . . . . . . . . Recycled Matter . | . . . . . . . . . . . . . . . . . . . . . . . . . . . . . . . . Retrieved Matter . | . . . . . . . . . . . . . . . . . . . . . . . . . . . . . . . . Retrieved Components 2 | . . . . . . . . . . . . . . . . . . 2 . . . . . . . . . . . . . Parts Scanalyzed 13 | . . 2 . 3 . . . . . . 2 . . . . . . 2 . . . . 4 . . . . . . . . Part Schematics Acquired 13 | . . 2 . 3 . . . . . . 2 . . . . . . 2 . . . . 4 . . . . . . . . Parts Damaged 1 | . . . . . . . . . . . . . . . . . . 1 . . . . . . . . . . . . . Bothacking | -11 -10 -9 -9 -8 -8 -7 -7 -7 -7 -6 -6 -6 -6 -6 -5 -5 -5 -5 -5 -5 -5 -4 -4 -4 -4 -4 -4 -3 -3 -2 -1 ------------ Run | Scr Mat Mat Min Mat Sto Fac Low Low Dat Pro Fac Low Low Zio Pro Fac Was Fac Upp Upp War Pro Fac Ext Cet Arc Hub Res Qua Res Acc Used RIF Installer . | . . . . . . . . . . . . . . . . . . . . . . . . . . . . . . . . Robots Hacked 4 | . . . . . . 2 . . . . . . . 1 . . . . . . . . . . . . . . 1 . . Non-combat 2 | . . . . . . 2 . . . . . . . . . . . . . . . . . . . . . . . . . Combat 2 | . . . . . . . . . . . . . . 1 . . . . . . . . . . . . . . 1 . . Robot Hacks Applied 7 | . . . . . . 4 . . . . . . . 1 . . . . . . . . . . . . . . 2 . . parse_system 2 | . . . . . . . . . . . . . . 1 . . . . . . . . . . . . . . 1 . . no_distress 2 | . . . . . . 2 . . . . . . . . . . . . . . . . . . . . . . . . . find_fabricator 2 | . . . . . . 2 . . . . . . . . . . . . . . . . . . . . . . . . . find_scanalyzer 1 | . . . . . . . . . . . . . . . . . . . . . . . . . . . . . 1 . . Relay Couplers Released 5 | . . . . . . . . . . . . . . . . . . . . . . . . . . . . . 3 2 . Machine Destruction 2 | . . . . . . . . . . . . . . . . . . . . . . . . . . . . . . 2 . Programmers 3 | . . . . . . . . . . . . . . . . . . . . . . . . . . . . . 3 . . Robots Rewired 3 | . . . . . . . . . . . . . . . . . . . . . . . . 3 . . . . . . . Allies Hacked 2 | . . . . . . . 1 . . . . . . . . . . . . . . . . . . . . . 1 . . Hacks Repelled . | . . . . . . . . . . . . . . . . . . . . . . . . . . . . . . . . Allies | -11 -10 -9 -9 -8 -8 -7 -7 -7 -7 -6 -6 -6 -6 -6 -5 -5 -5 -5 -5 -5 -5 -4 -4 -4 -4 -4 -4 -3 -3 -2 -1 -------- Run | Scr Mat Mat Min Mat Sto Fac Low Low Dat Pro Fac Low Low Zio Pro Fac Was Fac Upp Upp War Pro Fac Ext Cet Arc Hub Res Qua Res Acc Total Allies 57 | . . . . . 10 1 . . . 1 2 . . . . . 1 2 . . . . . 10 3 . . 1 3 23 . Largest Group 11 | . . . . . 10 9 2 . . 1 2 . . . . . 1 1 1 1 . . . 8 8 4 2 1 2 11 . Highest-Rated Group 533 | . . . . . 173 167 42 . . 94 92 . . . . . 31 41 23 21 . . . 429 533 364 188 44 137 157 . Highest-Rated Ally 156 | . . . . . 29 29 26 . . 94 46 . . . . . 31 41 23 21 . . . 156 156 147 94 44 90 15 . Total Orders 2 | . . . . . . . . . . . . . . . . 1 . . . . . . . . . . . . 1 . . EXPLORE 1 | . . . . . . . . . . . . . . . . . . . . . . . . . . . . . 1 . . RETURN 1 | . . . . . . . . . . . . . . . . 1 . . . . . . . . . . . . . . . Ally Attacks 394 | . . . . . 18 49 . . . 21 19 . . . . . 10 5 . . . . . 41 61 24 9 . 3 134 . Total Damage 9850 | . . . . . 251 615 . . . 840 650 . . . . . 145 492 . . . . . 1278 1520 815 288 . 137 2819 . Kills 65 | . . . . . 2 7 . . . 4 4 . . . . . . . . . . . . 11 15 4 . . 1 17 . Allies Corrupted 1 | . . . . . . . . . . 1 . . . . . . . . . . . . . . . . . . . . . Allies Melted 2 | . . . . . . . . . . . . . . . . . . . . . . . . 2 . . . . . . . Intel | -11 -10 -9 -9 -8 -8 -7 -7 -7 -7 -6 -6 -6 -6 -6 -5 -5 -5 -5 -5 -5 -5 -4 -4 -4 -4 -4 -4 -3 -3 -2 -1 ------- Run | Scr Mat Mat Min Mat Sto Fac Low Low Dat Pro Fac Low Low Zio Pro Fac Was Fac Upp Upp War Pro Fac Ext Cet Arc Hub Res Qua Res Acc Robot Analysis Total 15 | . 3 . . . . . . . . . . . . . . . . 2 . . . . 3 5 . . 1 . 1 . . Derelict Logs Recovered 9 | . . . 1 . . . 1 2 . 1 . 1 1 . 1 . . . 1 . . . . . . . . . . . . Drone Launches 3 | . . . . . . . . . . . . . . . . 2 . . . . . . . . . . . . 1 . . Drone Recoveries 3 | . . . . . . . . . . . . . . . . 2 . . . . . . . . . . . . 1 . . Exploration | -11 -10 -9 -9 -8 -8 -7 -7 -7 -7 -6 -6 -6 -6 -6 -5 -5 -5 -5 -5 -5 -5 -4 -4 -4 -4 -4 -4 -3 -3 -2 -1 ------------- Run | Scr Mat Mat Min Mat Sto Fac Low Low Dat Pro Fac Low Low Zio Pro Fac Was Fac Upp Upp War Pro Fac Ext Cet Arc Hub Res Qua Res Acc Turns Passed 11153 | 140 554 1703 470 1688 1053 394 136 119 25 148 505 127 86 237 64 112 95 587 93 57 171 67 722 342 202 84 138 117 469 253 195 Spaces Moved 14434 | 71 267 820 265 775 546 554 323 266 82 384 1223 333 278 789 196 227 195 1225 194 188 577 255 972 658 260 96 438 246 886 555 290 Core 114 | 14 . . . . . 1 . . . . . . . . . . . . . . . . . . . . 1 . . 98 . Treads 2746 | 57 267 820 265 775 546 16 . . . . . . . . . . . . . . . . . . . . . . . . . Legs . | . . . . . . . . . . . . . . . . . . . . . . . . . . . . . . . . Wheels . | . . . . . . . . . . . . . . . . . . . . . . . . . . . . . . . . Hover . | . . . . . . . . . . . . . . . . . . . . . . . . . . . . . . . . Flight 11574 | . . . . . . 537 323 266 82 384 1223 333 278 789 196 227 195 1225 194 188 577 255 972 658 260 96 437 246 886 457 290 Fastest Speed 23 | 50 160 160 160 160 145 29 29 29 29 29 29 29 29 29 29 26 35 26 26 26 26 26 26 23 25 25 25 25 25 25 28 Average Speed 54 | 138 160 160 160 177 150 32 29 29 29 38 32 29 29 29 31 34 35 30 26 26 26 26 26 30 25 25 25 28 25 38 32 Slowest Speed 400 | 160 160 160 160 183 185 145 29 29 29 105 105 29 29 29 35 35 35 35 26 26 26 26 26 104 25 25 400 35 32 100 40 Overloaded Moves 22 | . . . . . . . . . . . . . . . . . . . . . . . . 22 . . . . . . . Propulsion Burnouts . | . . . . . . . . . . . . . . . . . . . . . . . . . . . . . . . . Robots Hopped 61 | . . . . . . 1 . . . 4 14 . . . . 2 . 9 . . 2 . 7 3 . 1 4 2 2 9 1 Cave-ins Triggered 2 | . . . . . . . . . . . . . . . . . . . . . . . . . . . . . 2 . . Teleports 1 | . . . . . . . . . . . . . . . . . . . . . . . . . . . . . . 1 . Exploration Rate (%) 53 | 4 46 76 72 74 86 14 63 48 69 76 43 48 53 80 40 11 98 30 37 35 89 58 22 78 80 80 57 10 97 26 8 Regions Visited 31 Branch Regions 19 Pre-discovered Areas 5 | . . . 1 . . . . 1 1 1 . . . . . . . . 1 . . . . . . . . . . . . Known Exits Taken 15 | . 1 . . 1 . 1 . . . . 1 1 . . 1 . . 1 . 1 . 1 1 1 . . 1 1 1 1 . Unknown Exits Taken 14 | 1 . 1 1 . 1 . 1 1 1 1 . . 1 1 . . . . 1 . 1 . . . 1 1 . . . . . Scrap Searched 23 | . . . 2 . . . 1 2 . 2 . 1 6 4 1 . . . 2 1 . 1 . . . . . . . . . Spaces Dug 71 | . . . . . 9 . 1 . . 1 13 . . . . . . 9 . 1 . . 5 . 2 . 5 3 13 1 8 Terrain Destroyed 509 | . . 21 . 15 31 . 1 39 . 1 13 . . . . 42 . 111 . 1 . . 49 . 2 . 158 3 13 1 8 Melee 61 | . . . . . . . 1 . . 1 13 . . . . . . 9 . 1 . . 5 . 2 . 4 3 13 1 8 Projectile 4 | . . . . . 3 . . . . . . . . . . . . . . . . . . . . . 1 . . . . AOE 444 | . . 21 . 15 28 . . 39 . . . . . . . 42 . 102 . . . . 44 . . . 153 . . . . Terrain Rammed . | . . . . . . . . . . . . . . . . . . . . . . . . . . . . . . . . Walls Destroyed . | . . . . . . . . . . . . . . . . . . . . . . . . . . . . . . . . Machines Disabled . | . . . . . . . . . . . . . . . . . . . . . . . . . . . . . . . . Actions | -11 -10 -9 -9 -8 -8 -7 -7 -7 -7 -6 -6 -6 -6 -6 -5 -5 -5 -5 -5 -5 -5 -4 -4 -4 -4 -4 -4 -3 -3 -2 -1 --------- Run | Scr Mat Mat Min Mat Sto Fac Low Low Dat Pro Fac Low Low Zio Pro Fac Was Fac Upp Upp War Pro Fac Ext Cet Arc Hub Res Qua Res Acc Total 16776 | 94 317 1041 282 936 686 762 343 302 82 380 1290 356 279 796 197 247 221 1399 231 190 595 254 1407 778 393 148 454 284 1094 586 352 Wait 1345 | . . . . 13 43 167 . 29 . . 30 8 . . . 3 27 133 35 . . . 394 84 130 50 . 12 156 7 24 Move 14289 | 70 266 819 264 774 545 551 322 265 81 376 1196 332 277 788 195 223 194 1206 193 187 573 254 958 651 259 93 429 241 881 539 287 Hop 53 | . . . . . . 1 . . . 3 12 . . . . 2 . 9 . . 1 . 6 3 . 1 4 2 2 6 1 Pick Up 180 | 6 7 48 . 7 11 11 2 1 . . 8 . . 2 . 3 . 13 . . 2 . 13 3 1 . 6 3 9 15 9 Fast Attach 57 | 2 . 1 . 5 6 7 . 1 . . 3 1 . 1 . 2 . 4 1 . 8 . 1 2 . . 1 . 7 1 3 Attach 137 | 4 1 31 . 5 6 10 2 . 1 . 6 . . 1 2 1 . 11 . . 1 . 12 4 1 . 6 6 4 13 9 Detach 6 | . . 1 . . 1 . . . . . . . . . . . . . . . . . 1 . . . 1 1 1 . . Swap 23 | 1 . 5 . 6 3 1 . . . . 2 . . . . . . 1 . 1 1 . . . . . . . 2 . . Drop 112 | 1 1 25 . 13 14 6 2 1 . . 7 . . 3 . 2 . 8 . . 9 . 4 1 . . 1 1 8 4 1 Fire 316 | 10 41 94 18 88 53 . . 5 . . . . . . . . . . . 1 . . 1 . . . 2 . 3 . . Melee 163 | . . . . . . 4 15 . . 1 26 4 2 1 . 11 . 14 2 1 . . 17 10 2 4 4 5 21 1 18 Ram . | . . . . . . . . . . . . . . . . . . . . . . . . . . . . . . . . Kick . | . . . . . . . . . . . . . . . . . . . . . . . . . . . . . . . . Crush 31 | . 1 17 . 9 4 . . . . . . . . . . . . . . . . . . . . . . . . . . Escape Stasis 22 | . . . . . . . . . . . . . . . . . . . . . . . . 9 . . . 13 . . . Rewire 27 | . . . . 16 . . . . . . . . . . . . . . . . . . . 11 . . . . . . . Trap 15 | . . . . . . 4 . . . . . 11 . . . . . . . . . . . . . . . . . . . Miscellaneous . | . . . . . . . . . . . . . . . . . . . . . . . . . . . . . . . . Route ------- -11/Scrapyard -10/Materials (discovered 4 exits: *Mat x3 / [*Min]) -9/Materials (discovered 3 exits: *Mat / [*Min x2]) -9/Mines -8/Materials (discovered 3 exits: *Fac / *Sto x2) -8/Storage -7/Factory (discovered 2 exits: *Low x2) -7/Lower Caves -7/Lower Caves -7/Data Miner -6/Proximity Caves -6/Factory (discovered 3 exits: *Fac / *Low x2) -6/Lower Caves -6/Lower Caves (discovered 2 exits: *Fac / [*Zio]) -6/Zion -5/Proximity Caves -5/Factory (discovered 2 exits: Upp x2) -5/Waste -5/Factory (discovered 6 exits: Fac x4 / *Upp x2) -5/Upper Caves -5/Upper Caves (discovered 2 exits: Fac / *War) -5/Warlord -4/Proximity Caves -4/Factory (discovered 8 exits: *Res x4 / *Upp x2 / *Ext x2) -4/Extension (discovered 2 exits: *Res / *Cet) -4/Cetus -4/Archives (discovered 2 exits: *Hub x2) -4/Hub_04(d) (discovered 4 exits: *Res x4) -3/Research (discovered 6 exits: Res x3 / Arm / *Qua x2) -3/Quarantine -2/Research (discovered 5 exits: *Acc x3 / Tes x2) -1/Access Tau Ceti IV Orbit History --------- Turn | Location | Event 9 | -11/Scrapyard | Discovered new exit (range 16) 141 | -11/Scrapyard | Entered Materials 203 | -10/Materials | Discovered new exit (range 13) 262 | -10/Materials | Identified exit to Materials 313 | -10/Materials | Build established: Mutant 430 | -10/Materials | Core integrity fell below 50% 695 | -10/Materials | Entered another Materials area 695 | -9/Materials | Evolved 2 slots: Propulsion x1, Utility x1 789 | -9/Materials | Discovered new exit (range 6) 836 | -9/Materials | Lost 3 parts (2n1w) 1125 | -9/Materials | Build established: Scavenger-Mutant 1213 | -9/Materials | Discovered new exit (range 11) 1259 | -9/Materials | Lost 3 parts (1p2n) 1550 | -9/Materials | Core integrity fell below 50% 1813 | -9/Materials | Discovered new exit (range 16) 2398 | -9/Materials | Entered Mines 2473 | -9/Mines | Learned location of Zion (-6) 2842 | -9/Mines | Discovered new exit (range 6) 2868 | -9/Mines | Entered Materials 2868 | -8/Materials | Evolved 2 slots: Utility x2 2978 | -8/Materials | Discovered new exit (range 5) 3633 | -8/Materials | Build established: Mutant 3994 | -8/Materials | Identified exit to Storage 4332 | -8/Materials | Destroyed 11 combat bots 4353 | -8/Materials | Discovered new exit (range 8) 4468 | -8/Materials | First assault squad dispatched 4556 | -8/Materials | Entered Storage 4606 | -8/Storage | Core integrity fell below 50% 4904 | -8/Storage | Discovered new exit (range 10) 5458 | -8/Storage | Assisted by bots powering up and referring to "LRC-V3" 5609 | -8/Storage | Entered Factory 5609 | -7/Factory | Accompanied by 8 allies 5609 | -7/Factory | Evolved 2 slots: Utility x2 5633 | -7/Factory | Released all parts (11) 5698 | -7/Factory | Identified exit to Lower Caves 5845 | -7/Factory | Fabricated Imp. Propulsion Shielding (x2) 5923 | -7/Factory | Fabricated Hacking Suite (x1) 6003 | -7/Factory | Entered Lower Caves 6003 | -7/Lower Caves | Accompanied by 2 allies 6032 | -7/Lower Caves | P-60 Hacker assimilated allied Administrator 4a 6055 | -7/Lower Caves | Attracted the attention of an 0b10 checkpoint 6122 | -7/Lower Caves | Discovered new exit (range 15) 6126 | -7/Lower Caves | Learned Factory trap positions 6136 | -7/Lower Caves | Build established: Hacker-Sprinter 6139 | -7/Lower Caves | Entered another Lower Caves area 6149 | -7/Lower Caves | Attracted the attention of an 0b10 outpost 6208 | -7/Lower Caves | Encountered a Warlord checkpoint 6236 | -7/Lower Caves | P-60 Hacker assimilated allied BT-R2U(g) 6255 | -7/Lower Caves | Discovered new exit (range 11) 6256 | -7/Lower Caves | Learned Factory stockpile data 6258 | -7/Lower Caves | Entered Data Miner 6258 | -7/Data Miner | Discovered new exit (range 6) 6264 | -7/Data Miner | Met Data Miner 6270 | -7/Data Miner | Learned location of Section 7 (-2) 6270 | -7/Data Miner | Acquired the access code to Warlord's prototype stash 6275 | -7/Data Miner | Received God Mode back door access code from Data Miner 6283 | -7/Data Miner | Entered Proximity Caves 6288 | -6/Proximity Caves | Escorted by Enhanced Grunt 6288 | -6/Proximity Caves | Attracted the attention of an 0b10 outpost 6360 | -6/Proximity Caves | Spotted B-75 Beast 6426 | -6/Proximity Caves | Attracted the attention of an 0b10 checkpoint 6426 | -6/Proximity Caves | Discovered new exit (range 15) 6431 | -6/Proximity Caves | Entered Factory 6431 | -6/Factory | Evolved 2 slots: Propulsion x1, Utility x1 6432 | -6/Factory | Loaded intel: 105 trap records 6735 | -6/Factory | Local fabrication network quarantined 6755 | -6/Factory | Fabricated X-72 Disruptor? 6848 | -6/Factory | Identified exit to Lower Caves 6889 | -6/Factory | Discovered new exit (range 14) 6892 | -6/Factory | Build established: Wizard-Sprinter 6936 | -6/Factory | Entered Lower Caves 6954 | -6/Lower Caves | Identified exit to Lower Caves 6985 | -6/Lower Caves | Encountered a Warlord checkpoint 7063 | -6/Lower Caves | Entered another Lower Caves area 7070 | -6/Lower Caves | Discovered new exit (range 16) 7079 | -6/Lower Caves | Attacked by a delusional Derelict stockpiling parts 7145 | -6/Lower Caves | Discovered new exit (range 10) 7149 | -6/Lower Caves | Entered Zion 7177 | -6/Zion | Discovered new exit (range 16) 7343 | -6/Zion | Given the Hacking Drone Bay 7345 | -6/Zion | Found Prototype Device 7386 | -6/Zion | Entered Proximity Caves 7394 | -5/Proximity Caves | Spotted B-75 Beast 7394 | -5/Proximity Caves | Identified exit to Factory 7418 | -5/Proximity Caves | Identified Hacking Drone Bay 7450 | -5/Proximity Caves | Entered Factory 7450 | -5/Factory | Evolved 2 slots: Power x1, Utility x1 7452 | -5/Factory | Lost 4 parts (1p2u1w) 7519 | -5/Factory | Identified exit to Upper Caves 7562 | -5/Factory | Sucked down chute 7562 | -5/Factory | Entered Waste 7563 | -5/Waste | Met a frightened Derelict 7577 | -5/Waste | Spotted C-40 Crusher 7583 | -5/Waste | Spotted C-40 Crusher 7584 | -5/Waste | Spotted C-40 Crusher 7584 | -5/Waste | Spotted C-40 Crusher 7639 | -5/Waste | Spotted C-40 Crusher 7648 | -5/Waste | Spotted C-40 Crusher 7652 | -5/Waste | Discovered new exit (range 12) 7657 | -5/Waste | Entered Factory 7723 | -5/Factory | Repaired Imp. Utility Shielding 7764 | -5/Factory | Build established: Wizard-Mutant 7795 | -5/Factory | Repaired Imp. Cesium-ion Thruster 7829 | -5/Factory | Incoming investigation squad redirected 7856 | -5/Factory | Identified exit to Factory 7877 | -5/Factory | Garrison activated, responded to threat 7877 | -5/Factory | Spotted B-75 Beast 7911 | -5/Factory | Fabricated Imp. Cesium-ion Thruster (x1) 7957 | -5/Factory | First assault squad dispatched 7979 | -5/Factory | Incoming assault squad redirected 7982 | -5/Factory | Fabricated Imp. Cesium-ion Thruster? 8027 | -5/Factory | Fabricated Imp. Propulsion Shielding? 8157 | -5/Factory | Incoming assault squad redirected 8194 | -5/Factory | Incoming investigation squad redirected 8244 | -5/Factory | Entered Upper Caves 8244 | -5/Upper Caves | Accompanied by 1 ally 8287 | -5/Upper Caves | Learned location of Armory (-3) 8290 | -5/Upper Caves | Build established: Wizard-Sprinter 8295 | -5/Upper Caves | Attracted the attention of an 0b10 checkpoint 8299 | -5/Upper Caves | Discovered new exit (range 11) 8337 | -5/Upper Caves | Entered another Upper Caves area 8337 | -5/Upper Caves | Accompanied by 1 ally 8345 | -5/Upper Caves | Core integrity fell below 50% 8384 | -5/Upper Caves | Identified exit to Warlord 8384 | -5/Upper Caves | Learned location of 1 exit from Factory 8384 | -5/Upper Caves | Learned 6 Proximity Caves zone layouts 8384 | -5/Upper Caves | Learned Factory garrison access intel 8384 | -5/Upper Caves | Learned Research garrison access intel 8394 | -5/Upper Caves | Entered Warlord 8403 | -5/Warlord | System corruption cleaned by Quarantine Array 8433 | -5/Warlord | Met Warlord 8436 | -5/Warlord | Opened Warlord's prototype stash 8440 | -5/Warlord | Found Prototype Device 8440 | -5/Warlord | Identified Exp. Cloaking Device 8450 | -5/Warlord | Found Prototype Device 8450 | -5/Warlord | Identified System Purifier 8453 | -5/Warlord | Found Prototype Processor 8458 | -5/Warlord | Warlord's base attacked by MAIN.C 8508 | -5/Warlord | Found Prototype Energy Gun 8508 | -5/Warlord | Identified Vortex Rail 8510 | -5/Warlord | Found Prototype Energy Gun 8510 | -5/Warlord | Identified Vortex Rifle 8558 | -5/Warlord | Opened side exit 8563 | -5/Warlord | Discovered new exit (range 9) 8565 | -5/Warlord | Entered Proximity Caves 8632 | -4/Proximity Caves | Entered Factory 8632 | -4/Factory | Evolved 2 slots: Utility x2 8633 | -4/Factory | Identified exit to Extension 8634 | -4/Factory | Identified exit to Research 8635 | -4/Factory | Loaded intel: 4 garrison access locations 8647 | -4/Factory | Identified exit to Upper Caves 8710 | -4/Factory | Repaired Mic. Fission Core 8750 | -4/Factory | Repaired Imp. Utility Shielding 8822 | -4/Factory | Repaired Imp. Cesium-ion Thruster 8862 | -4/Factory | Repaired Imp. Propulsion Shielding 8897 | -4/Factory | Found Prototype Slashing Weapon 8910 | -4/Factory | Identified Vibroblade 9006 | -4/Factory | Fabricated Mni. Smartbomb Launcher (x1) 9030 | -4/Factory | Local fabrication network quarantined 9092 | -4/Factory | Fabricated Exp. Cesium-ion Thruster (x1) 9130 | -4/Factory | Repaired Imp. Propulsion Shielding 9160 | -4/Factory | Repaired Mic. Fission Core 9202 | -4/Factory | Repaired Cld. Cesium-ion Thruster 9344 | -4/Factory | Spotted B-86 Titan 9354 | -4/Factory | Entered Extension 9366 | -4/Extension | Rescued a captive Derelict 9371 | -4/Extension | Rescued a captive Derelict 9404 | -4/Extension | Rescued a captive Derelict 9438 | -4/Extension | Spotted B-86 Titan 9440 | -4/Extension | Spotted B-86 Titan 9448 | -4/Extension | Identified exit to Cetus 9457 | -4/Extension | Rescued a captive Derelict 9473 | -4/Extension | Rescued A7 9507 | -4/Extension | Lost 3 parts (2p1w) 9565 | -4/Extension | Rescued a captive Derelict 9568 | -4/Extension | Rescued a captive Derelict 9573 | -4/Extension | Rescued a captive Derelict 9583 | -4/Extension | Discovered exit to Research (range 10) 9614 | -4/Extension | Disrupted transfer network 9653 | -4/Extension | Lost 5 parts (1p2n2u) 9696 | -4/Extension | Entered Cetus 9696 | -4/Cetus | Accompanied by 6 allies (A7) 9701 | -4/Cetus | Acquired a Cetus Manufacturing Module code from A7 9702 | -4/Cetus | Spotted Cetus Guard 9702 | -4/Cetus | Spotted Cetus Guard 9702 | -4/Cetus | Spotted Cetus Guard 9702 | -4/Cetus | Spotted Cetus Guard 9717 | -4/Cetus | Allies destroyed Cetus Guard 9722 | -4/Cetus | Started Cetus Manufacturing Module 9728 | -4/Cetus | Central database locked down 9737 | -4/Cetus | Allies destroyed Cetus Guard 9746 | -4/Cetus | Allies destroyed Cetus Guard 9747 | -4/Cetus | Manufactured an Enhanced Grunt 9772 | -4/Cetus | Manufactured an Enhanced Grunt 9797 | -4/Cetus | Manufactured an Enhanced Grunt 9806 | -4/Cetus | Cetus Manufacturing Module disabled 9825 | -4/Cetus | Discovered new exit (range 21) 9898 | -4/Cetus | Entered Archives 9898 | -4/Archives | Accompanied by 4 allies (A7) 9905 | -4/Archives | Discovered new exit (range 22) 9933 | -4/Archives | Discovered new exit (range 21) 9982 | -4/Archives | Entered Hub_04(d) 9982 | -4/Hub_04(d) | Accompanied by 2 allies 10113 | -4/Hub_04(d) | Network Hub disabled 10120 | -4/Hub_04(d) | Entered Research 10120 | -3/Research | Evolved 2 slots: Propulsion x1, Utility x1 10121 | -3/Research | Loaded intel: 4 garrison access locations 10183 | -3/Research | Identified exit to Research 10199 | -3/Research | Identified exit to Armory 10199 | -3/Research | Identified exit to Quarantine 10222 | -3/Research | Spotted B-86 Titan 10237 | -3/Research | Entered Quarantine 10252 | -3/Quarantine | Found Alien Energy Cannon 10299 | -3/Quarantine | Found Prototype Hackware 10299 | -3/Quarantine | Identified Exp. System Shield 10339 | -3/Quarantine | Repaired Electron Diverter? 10466 | -3/Quarantine | Repaired Exp. Cesium-ion Thruster 10481 | -3/Quarantine | Repaired Imp. Utility Shielding 10527 | -3/Quarantine | Crushed by falling debris 10529 | -3/Quarantine | Crushed by falling debris 10547 | -3/Quarantine | System corruption reached 10% 10577 | -3/Quarantine | Lost 4 parts (1p3u) 10577 | -3/Quarantine | Found Alien Artifact 10590 | -3/Quarantine | Found Alien Artifact 10592 | -3/Quarantine | Found Alien Artifact 10593 | -3/Quarantine | Found Alien Artifact 10617 | -3/Quarantine | Found Alien Artifact 10617 | -3/Quarantine | Identified Core Reset Matrix 10617 | -3/Quarantine | Identified Transdimensional Reconstructor 10617 | -3/Quarantine | Identified Dimensional Node Initializer (x3) 10617 | -3/Quarantine | Used Core Reset Matrix 10621 | -3/Quarantine | Detected hypermatrix surge 10621 | -3/Quarantine | Sensed 8 artifacts in vicinity 10621 | -3/Quarantine | Met incapacitated Sigix Warrior 10621 | -3/Quarantine | Lockdown squad dispatched 10621 | -3/Quarantine | Acquired the access code to the Sigix quarantine chamber 10622 | -3/Quarantine | Unlocked Sigix quarantine chamber 10632 | -3/Quarantine | Spotted Lightning 10645 | -3/Quarantine | Spotted Lightning 10645 | -3/Quarantine | Spotted Lightning 10706 | -3/Quarantine | Entered Research 10706 | -2/Research | Warlord forces began assault on 0b10 10706 | -2/Research | Evolved 2 slots: Propulsion x1, Utility x1 10712 | -2/Research | Lost 10 parts (3p2n3u2w) 10714 | -2/Research | Found Prototype Processor 10715 | -2/Research | Identified Spectral Analyzer 10755 | -2/Research | Warped through subspace 10755 | -2/Research | Spotted B-90 Cyclops 10760 | -2/Research | Identified exit to Access 10760 | -2/Research | Identified exit to Testing 10791 | -2/Research | Spotted B-90 Cyclops 10800 | -2/Research | Lost 8 parts (2p2n2u2w) 10816 | -2/Research | Research machine network offline 10839 | -2/Research | Core integrity fell below 50% 10858 | -2/Research | Emitted hypermatrix ping 10863 | -2/Research | Assembled emerged from beneath the floor 10873 | -2/Research | Lost 6 parts (3n3u) 10877 | -2/Research | Assembled emerged from beneath the floor 10943 | -2/Research | Assembled emerged from beneath the floor 10956 | -2/Research | Found Prototype Slashing Weapon 10956 | -2/Research | Identified Centrium Greatsword 10958 | -2/Research | Spotted Executioner 10958 | -2/Research | Spotted Executioner 10959 | -2/Research | Entered Access 10959 | -1/Access | Evolved 2 slots: Power x1, Utility x1 11026 | -1/Access | Identified exit to Surface 11154 | *** | Destroyed 0B10! Last Messages --------------- >>Prototypes Downloading prototype IDs... Graviton Cannon Thermal Barrier Adv. Overload Amplifier Exp. Cloaking Device 11106_ Connecting with Repair Station... >>Refit Scanning configuration... Attaching: Backup Power VII x1 11108_ Connecting with Terminal... >>Layout(Zone) Retrieving Zone 4B layout... Downloaded map data. 11152_ Connecting with Terminal... >>Open Sealed Barrier opened. 11153_ The Access Shell folds into the floor. [Achievement: Payload Armed] Map ----- +----------------------------------------------------+ | ?????????????????????????????????????????????????? | | ?????????????????????????????????????????????????? | | ?????????????????????????????????????????????????? | | ?????????#####???????????????????????????????????? | | ?????????? #???????????????????????????????????? | | ?????? #???????????????????????????????????? | | ########### #???????????????????????????????????? | | """"" + #???????????????????????????????????? | | """"" # #???????????????????????????????????? | | """"" # #???????????????????????????????????? | | """"" # #???????????????????????????????????? | | """"" # #???????????????????????????????????? | | # #???????????????????????????????????? | | # #???????????????????????????????????? | | # +???????????????????????????????????? | | # #???????????????????????????????????? | | #########"# #???????????????????????????????????? | | #???????##" #???????????????????????????????????? | | #????????## #?????###???????????????????????????? | | ##????????# ####### ##########??????????????????? | | #????????# """T""" "??????????????????? | | #????????# """ """ "??????????????????? | | #????????# "??????????????????? | | #????????# "??????????????????? | | #????????# "" "??????????????????? | | #????????# @" "??????????????????? | | #????????# "??????????????????? | | #????????# "??????????????????? | | ###??????# "??????????????????? | | ## ??????# "??????????????????? | | #???# ####### ##########??????????????????? | | #???# #?????###???????????????????????????? | | ## #???# #???????????????????????????????????? | | ## ??????# #???????????????????????????????????? | | ## ??????# #???????????????????????????????????? | | ## ??????# #???????????????????????????????????? | | ??????????# ????????????????????????????????????? | | ??????????# ????????????????????????????????????? | | ??????????# ????????????????????????????????????? | | ?????????? ????????????????????????????????????? | | ????????? ????????????????????????????????????? | | ????????? ????????????????????????????????????? | | ?????????? ????????????????????????????????????? | | ???????????#?????????????????????????????????????? | | ?????????????????????????????????????????????????? | | ?????????????????????????????????????????????????? | | ?????????????????????????????????????????????????? | | ?????????????????????????????????????????????????? | | ?????????????????????????????????????????????????? | | ?????????????????????????????????????????????????? | +----------------------------------------------------+ Best States ------------- Heat Dissipation 90 Energy Generation 37 Energy Capacity 590 Matter Stores 300 Matter Capacity 300 Sight Range 22 Terrain Scan Density 10 Additional Mass Support 12 Armor Coverage 600 Propulsion Shielding 66 Utility Shielding 66 Evasion (%) 65 Recoil Reduction 3 Stasis Canceling 2 Offensive Hacking 70 Defensive Hacking 53 Item Schematics ----------------- None Robot Schematics ------------------ None Fabricated ------------ Imp. Propulsion Shielding | x2 | -7/Factory Hacking Suite | x1 | -7/Factory X-72 Disruptor | x2 | -6/Factory Imp. Cesium-ion Thruster | x1 | -5/Factory Imp. Cesium-ion Thruster | x1 | -5/Factory Imp. Propulsion Shielding | x2 | -5/Factory Mni. Smartbomb Launcher | x1 | -4/Factory Exp. Cesium-ion Thruster | x1 | -4/Factory Alien Tech Used ----------------- Core Reset Matrix Transdimensional Reconstructor Achievements -------------- Payload Armed Challenges ------------ None Game ------ Seed ArmageddonGreatSplitter Manual? 0 Play Time 02:44:22 Cumulative 636.9 hours Start 2021.11.07 @ 17:48:12 End 2021.11.07 @ 22:00:57 Sessions 5 Manual Loads 0 Difficulty Rogue Special Mode None Game No. 643 Rogue 602 Adventurer 41 Explorer 0 Win Type 3 Total 31 Types 23/0/6/1/0/0/0/1/0 Lore% 91 Gallery% 93 Achievement% 79 Wizard Run 0 Options --------- ASCII 0 Keyboard 0 Movement Mouse Keybinds 0 Fullscreen 1 Font 18/Terminus Map View 76x50 Tactical HUD 1 Map Filters NONE Filters NONE Steam 1 RUN: 6618204d-daec-4788-bafc-e582d021732c